bitfinex/quotes_ETHUSD_20250702
["timestamp","ask_amount","ask_price","bid_price","bid_amount"]
[1751464563651,0.02,2453.1,2453.0,28.8289038]
[1751464563830,0.02,2453.1,2453.0,35.6029038]
[1751464564132,0.02,2453.1,2453.0,29.0321038]
[1751464564299,0.02,2453.1,2453.0,28.20462549]
[1751464564907,0.02,2453.1,2453.0,41.63268845]
[1751464565107,0.02,2453.7,2453.1,4.07647466]
[1751464565328,0.02,2453.7,2453.1,14.82667466]
[1751464566632,0.02,2453.7,2453.1,24.25767466]
[1751464566814,0.02,2453.7,2453.1,18.77889876]
[1751464567134,0.02,2453.7,2453.1,27.65889876]
[1751464568006,0.02,2453.7,2453.1,41.08696172]
[1751464569123,0.02,2453.7,2453.1,40.89917372]
[1751464569306,0.02,2453.7,2453.1,27.47111076]
[1751464569705,0.02,2453.7,2453.1,48.55466576]
[1751464569910,1e-08,2453.2,2453.1,48.55466576]
[1751464570141,1e-08,2453.2,2453.1,48.17986876]
[1751464570338,1e-08,2453.2,2453.1,29.87611076]
[1751464570539,1e-08,2453.2,2453.1,27.47111076]
[1751464571110,1e-08,2453.2,2453.1,29.81391076]
[1751464571439,0.02,2453.7,2453.6,15.39604395]
[1751464571638,0.02,2453.7,2453.6,38.82447497]
[1751464573535,0.02,2453.7,2453.6,25.39641201]
[1751464573836,0.02,2453.7,2453.6,16.51741201]
[1751464574340,0.02,2453.7,2453.6,25.39341201]
[1751464574739,0.02,2453.7,2453.6,15.96741201]
[1751464574941,0.02,2453.7,2453.6,24.84341201]
[1751464576164,0.02,2453.7,2453.6,15.19701201]
[1751464576459,0.7719,2453.6,2453.4,2.107]
[1751464576616,0.7719,2453.6,2453.5,6.768]
[1751464576958,0.02,2453.7,2453.6,4.07564395]
[1751464577160,0.02,2453.7,2453.6,14.07564395]
[1751464577363,0.02,2453.7,2453.6,16.85821923]
[1751464577745,0.02,2453.7,2453.6,18.875]
[1751464578714,0.02,2453.7,2453.6,22.95064395]
[1751464579036,0.02,2453.7,2453.6,24.27264395]
[1751464579443,0.02,2453.7,2453.6,29.02264395]
[1751464579859,0.02,2453.7,2453.6,50.53590995]
[1751464580159,0.02,2453.7,2453.6,33.03596819]
[1751464580818,0.02,2453.7,2453.6,33.03296819]
[1751464582139,0.02,2453.7,2453.6,24.16096819]
[1751464582341,0.02,2453.7,2453.6,33.03196819]
[1751464582847,0.02,2453.7,2453.6,28.28196819]
[1751464583650,0.02,2453.7,2453.6,19.41096819]
[1751464583947,0.02,2453.7,2453.6,27.73196819]
[1751464585147,0.02,2453.7,2453.6,18.08896819]
[1751464585352,0.02,2453.7,2453.6,8.871]
[1751464585566,0.02,2453.7,2453.6,18.871]
[1751464585861,0.02,2453.7,2453.6,22.94564395]
[1751464586217,0.02,2453.7,2453.6,23.14884395]
[1751464586418,0.02,2453.7,2453.6,19.0732]
[1751464586627,0.02,2453.7,2453.6,23.14884395]
[1751464587033,0.02,2453.7,2453.6,19.0732]
[1751464587251,0.02,2453.7,2453.6,10.2032]
[1751464587448,0.02,2453.7,2453.6,19.0732]
[1751464587849,0.02,2453.7,2453.6,2.3072]
[1751464588149,1.78620497,2453.7,2453.6,6.9692]
[1751464589128,1.78620497,2453.7,2453.6,0.2032]
[1751464589449,1.78620497,2453.7,2453.6,6.9692]
[1751464590162,0.99260497,2453.7,2453.6,21.04484395]
[1751464590452,0.99260497,2453.7,2453.6,14.27884395]
[1751464590655,0.99260497,2453.7,2453.6,23.14884395]
[1751464591340,0.99260497,2453.7,2453.6,25.87130843]
[1751464592270,0.99565681,2453.7,2453.6,25.87130843]
[1751464593164,0.99565681,2453.7,2453.6,17.00130843]
[1751464593330,0.99565681,2453.7,2453.6,23.14884395]
[1751464593535,1.80125681,2453.7,2453.6,0.2032]
[1751464593879,1.80125681,2453.7,2453.6,6.9682]
[1751464594674,1.80125681,2453.7,2453.6,0.2032]
[1751464594825,1.80125681,2453.7,2453.6,6.9682]
[1751464595887,1.80125681,2453.7,2453.6,0.2032]
[1751464596033,2.22666884,2453.7,2453.6,6.9682]
[1751464596962,1.80125681,2453.7,2453.6,6.9682]
[1751464598827,1.80125681,2453.7,2453.6,0.2032]
[1751464599032,1.80125681,2453.7,2453.6,6.9682]
[1751464599270,1.80125681,2453.7,2453.6,0.2032]
[1751464599487,0.8284,2453.6,2453.4,0.2032]
[1751464599675,1.80405681,2453.5,2453.4,0.2032]
[1751464599958,2.22974884,2453.5,2453.4,0.2032]
[1751464602164,2.22966875,2453.5,2453.4,0.2032]
[1751464602362,1.80397672,2453.5,2453.4,0.2032]
[1751464603032,0.97557672,2453.5,2453.4,0.2032]
[1751464603446,0.97557672,2453.5,2453.4,6.9682]
[1751464603651,0.97557672,2453.5,2453.4,11.04417619]
[1751464604147,0.02,2453.7,2453.4,21.81107619]
[1751464604349,0.02,2453.7,2453.6,15.39254395]
[1751464604536,0.02,2453.7,2453.6,15.59574395]
[1751464604731,0.02,2453.7,2453.6,23.91574395]
[1751464605390,0.02,2453.7,2453.6,15.04574395]
[1751464605538,0.02,2453.7,2453.6,23.91474395]
[1751464605888,0.02,2453.7,2453.6,27.87631523]
[1751464606090,0.02,2453.7,2453.6,17.10841523]
[1751464606258,0.02,2453.7,2453.6,8.24041523]
[1751464606587,0.02,2453.7,2453.6,13.14684395]
[1751464606885,0.7754,2453.7,2453.6,0.2032]
[1751464607085,0.7754,2453.7,2453.6,6.9672]
[1751464608376,0.7754,2453.7,2453.6,0.2032]
[1751464608558,0.7754,2453.7,2453.6,6.9672]
[1751464608755,0.7754,2453.7,2453.6,0.2032]
[1751464615670,0.7754,2453.7,2453.4,6.763]
[1751464616002,0.7754,2453.7,2453.4,6.9662]
[1751464616400,0.97656772,2453.6,2453.4,6.9662]
[1751464616591,0.7754,2453.7,2453.4,0.2032]
[1751464616794,0.97669845,2453.6,2453.4,0.2032]
[1751464617098,0.97669845,2453.5,2453.4,0.2032]
[1751464617299,1.78719845,2453.5,2453.1,0.01]
[1751464617506,0.97669845,2453.4,2453.1,0.01]
[1751464617705,3.22767459,2453.3,2453.1,0.01]
[1751464617997,0.8105,2453.3,2453.1,0.01]
[1751464618592,0.97688976,2453.2,2453.1,0.01]
[1751464619297,1.81018976,2453.2,2453.1,0.01]
[1751464619894,2.01338976,2453.2,2453.1,0.01]
[1751464625233,12.01338976,2453.2,2453.1,0.01]
[1751464625398,14.80082138,2453.2,2453.1,0.01]
[1751464631517,1.81018976,2453.2,2453.1,0.01]
[1751464631716,0.97688976,2453.2,2453.1,0.01]
[1751464633828,0.97688976,2453.2,2453.1,0.9753]
[1751464634198,0.97688976,2453.2,2453.1,0.2132]
[1751464634700,0.97688976,2453.5,2453.1,0.2132]
[1751464634900,0.97688976,2453.4,2453.1,0.2132]
[1751464635128,0.97688976,2453.3,2453.1,0.01]
[1751464635318,0.97688976,2453.5,2453.1,0.01]
[1751464635518,0.97688976,2453.4,2453.3,0.2032]
[1751464641040,0.97688976,2453.4,2453.1,0.2132]
[1751464641245,0.97688976,2453.3,2453.1,0.2132]
[1751464641543,0.97688976,2453.2,2453.1,0.2132]
[1751464654862,0.02,2453.7,2453.3,0.8277]
[1751464655071,0.02,2453.7,2453.6,0.2032]
[1751464655388,0.02,2453.7,2453.6,4.27884395]
[1751464655733,0.02,2453.7,2453.6,0.2032]
[1751464656073,0.02,2453.7,2453.6,4.99942718]
[1751464656666,0.02,2453.7,2453.6,0.92378323]
[1751464657688,0.02,2453.7,2453.6,0.2032]
[1751464657988,0.02,2453.7,2453.3,2.099]
[1751464658199,0.02,2453.7,2453.3,2.3022]
[1751464658402,0.8242,2453.6,2453.3,2.3022]
[1751464658898,0.8242,2453.6,2453.3,0.2032]
[1751464659062,2.2737463,2453.6,2453.1,2.109]
[1751464659258,2.4769463,2453.6,2453.2,0.2032]
[1751464661173,4.90980982,2453.6,2453.2,0.2032]
[1751464662706,0.7847,2453.4,2453.1,0.01]
[1751464662909,0.7847,2453.2,2453.1,0.01]
[1751464663107,0.9879,2453.2,2453.1,0.01]
[1751464665306,13.42076352,2453.2,2453.1,0.01]
[1751464665484,10.9879,2453.2,2453.1,0.01]
[1751464665691,12.6536861,2453.2,2453.1,0.01]
[1751464666909,13.63066069,2453.2,2453.1,0.01]
[1751464667205,16.07308116,2453.2,2453.1,0.01]
[1751464671918,29.48094412,2453.2,2453.1,0.01]
[1751464672094,29.48094412,2453.2,2453.0,0.01]
[1751464672095,40.7645,2453.1,2453.0,0.01]
[1751464672299,30.8264,2452.9,2452.5,0.01]
[1751464672497,54.80446296,2452.6,2452.5,0.01]
[1751464672709,55.78143755,2452.6,2452.5,0.01]
[1751464673016,57.23098385,2452.6,2452.5,0.01]
[1751464673594,20.00792089,2452.6,2452.5,0.01]
[1751464673817,20.55792089,2452.6,2452.5,0.01]
[1751464677319,33.98598385,2452.6,2452.5,0.01]
[1751464678026,67.16867215,2452.6,2452.5,0.01]
[1751464678521,64.72837348,2452.6,2452.5,0.01]
[1751464679136,75.07953502,2452.6,2452.5,0.01]
[1751464679507,72.64837348,2452.6,2452.5,0.01]
[1751464681124,67.79467028,2452.6,2452.5,0.01]
[1751464681333,76.64667028,2452.6,2452.5,0.01]
[1751464682131,74.21582248,2452.6,2452.5,0.01]
[1751464683228,76.64667028,2452.6,2452.5,0.01]
[1751464684052,69.89167028,2452.6,2452.5,0.01]
[1751464684196,76.64667028,2452.6,2452.5,0.01]
[1751464684600,77.17622128,2452.6,2452.5,0.01]
[1751464685202,74.74537348,2452.6,2452.5,0.01]
[1751464685403,77.172992,2452.6,2452.5,0.01]
[1751464686101,74.74537348,2452.6,2452.5,0.01]
[1751464686432,77.17331071,2452.6,2452.5,0.01]
[1751464686733,74.74537348,2452.6,2452.5,0.01]
[1751464688231,1.3426,2452.3,2451.7,0.01]
[1751464688437,34.92291385,2452.3,2451.7,0.01]
[1751464689113,28.16891385,2452.3,2451.7,0.01]
[1751464689313,34.92291385,2452.3,2451.7,0.01]
[1751464690245,20.94485089,2452.3,2451.7,0.01]
[1751464690744,64.94461385,2452.3,2451.7,0.01]
[1751464690920,66.013684,2452.3,2451.7,0.01]
[1751464691118,68.44312229,2452.3,2451.7,0.01]
[1751464691862,10.7532,2452.2,2451.7,0.01]
[1751464692026,47.14454635,2452.2,2451.7,0.01]
[1751464692826,17.14454635,2452.2,2451.7,0.01]
[1751464693428,47.14454635,2452.2,2451.7,0.01]
[1751464693647,44.71321169,2452.2,2451.7,0.01]
[1751464694332,0.55,2451.8,2451.7,0.01]
[1751464694534,18.28097459,2451.8,2451.7,0.01]
[1751464696160,0.97697459,2451.8,2451.7,0.7708]
[1751464697047,0.97697459,2452.2,2451.8,0.8032]
[1751464697374,0.97697459,2452.1,2451.9,0.8032]
[1751464697546,0.97697459,2452.0,2451.9,0.8032]
[1751464697940,0.97697459,2452.0,2451.9,1.0064]
[1751464699246,0.97408064,2452.0,2451.9,1.0064]
[1751464700958,0.97408064,2452.0,2451.9,0.8032]
[1751464701583,0.97408064,2452.0,2451.9,1.0064]
[1751464701887,0.97408064,2452.0,2451.9,5.59438478]
[1751464702984,0.97408064,2452.0,2451.9,1.51591503]
[1751464704493,0.97408064,2452.0,2451.9,1.0064]
[1751464704987,0.97408064,2452.0,2451.9,5.08486975]
[1751464705285,0.97408064,2452.0,2451.9,1.0064]
[1751464706551,0.97408064,2452.0,2451.9,5.08486975]
[1751464706870,2.43229927,2452.7,2452.0,4.07813781]
[1751464707075,0.97725911,2452.6,2452.3,0.2032]
[1751464707271,0.97725911,2452.5,2452.4,0.7913]
[1751464709889,0.97725911,2452.5,2452.4,4.86893823]
[1751464710400,0.97725911,2452.5,2452.4,0.7913]
[1751464710553,0.97725911,2452.5,2452.4,1.29853688]
[1751464713311,0.97725911,2452.9,2452.4,1.29853688]
[1751464713477,0.02,2453.0,2452.4,1.29853688]
[1751464713478,0.97725911,2452.8,2452.4,1.29853688]
[1751464713691,0.97725911,2452.7,2452.4,1.29853688]
[1751464713866,0.02,2453.0,2452.4,1.29853688]
[1751464713867,0.97725911,2452.6,2452.4,1.29853688]
[1751464714067,0.97725911,2452.5,2452.4,1.29853688]
[1751464714510,0.97725911,2452.5,2452.4,0.9945]
[1751464714714,0.97725911,2452.5,2452.4,0.2032]
[1751464715198,10.2232,2453.0,2452.4,0.2032]
[1751464715394,0.2232,2453.0,2452.4,0.2032]
[1751464716278,10.2232,2453.0,2452.4,0.2032]
[1751464716578,10.2232,2453.0,2452.0,16.171291]
[1751464716579,0.97504019,2452.9,2452.5,4.83835028]
[1751464716791,0.02,2453.0,2452.8,0.7609]
[1751464716976,0.97486357,2452.9,2452.8,0.9641]
[1751464718269,0.02,2453.0,2452.8,5.0409896]
[1751464718473,0.02,2453.0,2452.8,0.9641]
[1751464719103,0.02,2453.0,2452.9,4.85060704]
[1751464719683,0.02,2453.0,2452.9,0.7738]
[1751464720574,0.02,2453.0,2452.9,4.85060704]
[1751464721600,0.02,2453.0,2452.9,14.85060704]
[1751464722888,0.02,2453.0,2452.9,23.68860704]
[1751464723098,0.02,2453.0,2452.9,26.18990078]
[1751464723305,0.02,2453.0,2452.9,3.27509374]
[1751464723984,0.02,2453.0,2452.9,0.7738]
[1751464724500,0.02,2453.0,2452.9,4.85060704]
[1751464725619,0.02,2453.0,2452.9,0.7738]
[1751464726333,0.02,2453.0,2452.9,4.85060704]
[1751464726507,0.02,2453.0,2452.9,0.7738]
[1751464726696,0.02,2453.0,2452.9,3.16299035]
[1751464726900,0.02,2453.0,2452.9,7.23979739]
[1751464728032,0.02,2453.0,2452.9,9.90699035]
[1751464729231,0.02,2453.0,2452.9,13.98379739]
[1751464729423,0.02,2453.0,2452.9,23.98379739]
[1751464731013,0.02,2453.0,2452.9,3.16299035]
[1751464731245,0.02,2453.0,2452.8,0.2032]
[1751464731555,0.02,2453.0,2452.8,4.28008728]
[1751464732655,0.02,2453.0,2452.9,4.85680704]
[1751464734065,0.02,2453.0,2452.9,14.85680704]
[1751464734245,0.02,2453.0,2452.9,17.44480461]
[1751464735662,0.02,2453.0,2452.9,24.18680461]
[1751464739376,0.02,2453.0,2452.9,25.04367717]
[1751464740855,0.02,2453.0,2452.9,26.58067717]
[1751464741258,0.02,2453.0,2452.9,17.75167717]
[1751464742080,0.02,2453.0,2452.9,26.58067717]
[1751464742278,0.02,2453.0,2452.9,17.75167717]
[1751464742449,0.02,2453.0,2452.9,26.58067717]
[1751464742645,0.02,2453.0,2452.9,26.27380461]
[1751464742878,0.02,2453.0,2452.9,17.44480461]
[1751464743082,0.02,2453.0,2452.9,26.27380461]
[1751464743246,0.02,2453.0,2452.9,17.44480461]
[1751464743645,0.02,2453.0,2452.9,15.45699757]
[1751464743948,0.02,2453.0,2452.9,18.829]
[1751464744550,0.02,2453.0,2452.9,12.089]
[1751464744755,0.02,2453.0,2452.9,18.828]
[1751464745984,0.02,2453.0,2452.9,16.739]
[1751464746380,0.99736138,2453.0,2452.9,16.739]
[1751464747057,0.02,2453.0,2452.9,14.07680704]
[1751464747260,0.02,2453.0,2452.9,16.739]
[1751464747860,0.02,2453.0,2452.9,21.3723082]
[1751464748473,0.99822029,2453.0,2452.9,21.3723082]
[1751464749671,0.99822029,2453.0,2452.9,17.29550116]
[1751464749868,0.99822029,2453.0,2452.9,18.828]
[1751464750481,0.99822029,2453.0,2452.5,9.796]
[1751464750785,0.97822029,2452.9,2452.6,6.739]
[1751464750974,0.97822029,2452.8,2452.6,6.739]
[1751464751294,0.97822029,2452.7,2452.6,6.739]
[1751464751659,0.97822029,2452.7,2452.6,10.81630571]
[1751464751966,0.02,2453.0,2452.7,4.07701806]
[1751464752175,0.97782641,2452.9,2452.8,10.81496642]
[1751464752781,0.02,2453.0,2452.8,10.81496642]
[1751464753361,0.02,2453.0,2452.8,6.738]
[1751464753562,0.97763989,2452.9,2452.8,2.089]
[1751464753763,0.97763989,2452.9,2452.8,8.827]
[1751464753963,0.97763989,2452.9,2452.8,12.90397325]
[1751464754165,0.97763989,2452.9,2452.6,13.03593057]
[1751464754393,0.02,2453.0,2452.7,15.59506984]
[1751464754693,0.97767139,2452.9,2452.7,15.59506984]
[1751464754895,0.02,2453.0,2452.7,15.59506984]
[1751464755191,0.97766392,2452.9,2452.7,15.59506984]
[1751464755392,0.02,2453.0,2452.7,15.59506984]
[1751464755705,0.97761071,2452.9,2452.6,10.7658]
[1751464755910,0.7964,2453.0,2452.7,8.827]
[1751464756062,0.97761745,2452.9,2452.7,8.827]
[1751464756262,0.7964,2453.0,2452.7,8.827]
[1751464756572,0.97756167,2452.9,2452.6,14.84309753]
[1751464756894,0.7964,2453.0,2452.7,8.827]
[1751464757062,0.97756514,2452.9,2452.7,8.827]
[1751464757263,0.02,2453.0,2452.7,12.90410942]
[1751464757568,0.97751017,2452.9,2452.8,14.07697325]
[1751464757763,0.02,2453.0,2452.9,4.07680704]
[1751464757962,0.99746009,2453.0,2452.9,4.07680704]
[1751464758165,0.99746009,2453.0,2452.8,20.8148769]
[1751464758366,0.02,2453.0,2452.8,16.738]
[1751464758880,0.02,2453.0,2452.8,20.81495843]
[1751464759086,0.02,2453.0,2452.9,4.07680704]
[1751464759400,0.99744891,2453.0,2452.9,4.07680704]
[1751464760493,0.99744891,2453.0,2452.9,0.2032]
[1751464760899,0.99744891,2453.0,2452.9,6.9412]
[1751464762401,0.99744891,2453.0,2452.9,11.01800704]
[1751464762596,0.99744891,2453.0,2452.9,6.9412]
[1751464763902,0.99744891,2453.0,2452.9,0.2032]
[1751464764109,1.79514891,2453.0,2452.9,0.2032]
[1751464764311,1.79514891,2453.0,2452.9,6.9402]
[1751464765104,0.99744891,2453.0,2452.9,6.9402]
[1751464766208,0.99744891,2453.0,2452.9,0.2032]
[1751464766504,2.09507457,2453.0,2452.9,6.9392]
[1751464767007,0.99744891,2453.0,2452.9,6.9392]
[1751464768207,0.99744891,2453.0,2452.9,10.81280704]
[1751464768701,0.99744891,2453.0,2452.9,20.81280704]
[1751464769517,0.02,2453.0,2452.9,20.81280704]
[1751464770091,0.99758603,2453.0,2452.9,20.81280704]
[1751464770727,0.99758603,2453.0,2452.9,19.43368742]
[1751464773229,0.99758603,2453.0,2452.8,2.086]
[1751464773433,0.8355,2453.0,2452.9,6.735]
[1751464773600,1.81360331,2453.0,2452.9,6.735]
[1751464773984,1.81360331,2453.0,2452.6,12.086]
[1751464774326,0.97810331,2452.9,2452.7,6.735]
[1751464774611,0.8355,2453.0,2452.7,6.735]
[1751464774811,0.97816586,2452.9,2452.7,6.735]
[1751464775013,0.02,2453.0,2452.9,4.07680704]
[1751464775212,0.99813502,2453.0,2452.9,10.81180704]
[1751464775817,0.99813502,2453.0,2452.9,20.81180704]
[1751464776029,0.99813502,2453.0,2452.9,23.74436722]
[1751464777142,0.02,2453.0,2452.9,23.74436722]
[1751464778209,0.02,2453.0,2452.9,23.94756722]
[1751464788050,0.99820632,2453.0,2452.9,23.94756722]
[1751464788220,0.99820528,2453.0,2452.9,23.94756722]
[1751464788744,0.97590767,2453.2,2453.1,4.07647466]
[1751464788948,0.97590767,2453.2,2453.1,23.93586805]
[1751464789249,0.97590767,2453.2,2453.1,24.13906805]
[1751464789744,0.4269596,2453.2,2453.1,24.68906805]
[1751464789917,0.02,2453.5,2453.4,14.07597619]
[1751464790117,0.02,2453.5,2453.4,23.72147619]
[1751464790346,0.02,2453.5,2453.4,26.70443396]
[1751464792268,0.02,2453.5,2453.4,12.98295777]
[1751464792452,0.02,2453.5,2453.4,23.09617619]
[1751464792849,0.8092,2453.5,2453.4,0.2032]
[1751464793161,0.8092,2453.5,2453.4,6.9342]
[1751464795344,0.8092,2453.5,2453.4,0.2032]
[1751464795544,0.8092,2453.5,2453.4,6.9332]
[1751464796249,0.8092,2453.5,2453.4,0.2032]
[1751464797556,0.02,2453.5,2453.4,0.2032]
[1751464800127,0.02,2453.5,2453.4,6.9322]
[1751464800331,0.7916,2453.5,2453.4,0.2032]
[1751464801035,0.02,2453.5,2453.4,0.2032]
[1751464801947,0.99694419,2453.5,2453.4,0.2032]
[1751464802756,0.7716,2453.4,2452.6,4.83339886]
[1751464802978,14.42500715,2453.5,2452.7,2.083]
[1751464802979,0.7716,2453.2,2452.7,2.083]
[1751464803187,0.97694419,2453.1,2452.6,10.0]
[1751464803481,0.97694419,2453.0,2452.6,2.083]
[1751464803683,0.7716,2453.2,2452.7,6.729]
[1751464803884,0.97734283,2453.1,2452.7,6.729]
[1751464804178,0.97734283,2453.0,2452.7,6.729]
[1751464804392,0.7716,2453.2,2452.7,13.48232791]
[1751464804601,0.97735262,2453.1,2452.7,13.48232791]
[1751464804890,0.97735262,2453.0,2452.7,13.48237456]
[1751464805191,0.7937,2453.4,2452.9,4.07680704]
[1751464805482,0.97736608,2453.3,2453.0,10.80457786]
[1751464805650,0.7937,2453.4,2453.1,6.728]
[1751464805978,0.97730367,2453.3,2453.1,6.728]
[1751464806145,0.02,2453.5,2453.1,10.80441082]
[1751464806350,0.97736165,2453.4,2453.1,10.8044519]
[1751464806553,0.97736165,2453.3,2453.1,6.728]
[1751464806753,0.02,2453.5,2453.1,10.80446679]
[1751464806964,0.97736056,2453.4,2453.1,6.728]
[1751464807279,0.97736056,2453.3,2453.1,10.80444899]
[1751464807460,0.97736056,2453.2,2453.1,8.42439995]
[1751464807871,0.97736056,2453.2,2452.9,4.07664551]
[1751464808186,0.97736056,2453.1,2453.0,8.811]
[1751464808368,0.97736056,2453.1,2453.0,6.728]
[1751464808561,0.97736056,2453.1,2453.0,10.80464084]
[1751464809563,0.97736056,2453.1,2453.0,11.56454084]
[1751464809874,0.97736056,2453.1,2453.0,13.49261322]
[1751464810581,0.02,2453.5,2453.4,4.07597619]
[1751464810753,0.99723645,2453.5,2453.4,10.80397619]
[1751464810954,0.99723645,2453.5,2453.4,11.57687619]
[1751464812170,0.99723645,2453.5,2453.4,4.84887619]
[1751464812486,0.99723645,2453.5,2453.4,10.47541265]
[1751464812790,0.99723645,2453.5,2453.4,9.90571265]
[1751464813149,0.99723645,2453.5,2453.4,13.98168884]
[1751464813553,0.99723645,2453.5,2453.4,1.09571265]
[1751464813783,0.99723645,2453.5,2453.4,9.0132]
[1751464813963,0.99723645,2453.5,2453.4,2.2862]
[1751464814167,1.80863645,2453.5,2453.4,9.0132]
[1751464814552,0.99723645,2453.5,2453.4,9.0132]
[1751464815059,0.99723645,2453.5,2453.4,13.08917619]
[1751464815260,0.99723645,2453.5,2453.4,14.39809381]
[1751464815576,0.99723645,2453.5,2453.4,25.19179381]
[1751464818787,0.02,2453.5,2453.4,25.19179381]
[1751464819191,0.99700695,2453.5,2453.4,25.19179381]
[1751464819368,0.02,2453.5,2453.4,25.19179381]
[1751464820058,0.02,2453.5,2453.4,25.74179381]
[1751464820487,0.02,2453.5,2453.4,25.73979381]
[1751464821490,0.02,2453.5,2453.4,16.38179381]
[1751464821797,0.02,2453.5,2453.4,25.18979381]
[1751464822929,0.02,2453.5,2453.4,24.39209381]
[1751464826032,0.02,2453.5,2453.4,25.73939381]
[1751464826510,0.02,2453.5,2453.4,21.68539381]
[1751464826712,0.02,2453.5,2453.4,30.48839381]
[1751464828825,2.46048981,2454.7,2453.4,30.48839381]
[1751464828826,3.27398641,2455.0,2454.5,12.770053]
[1751464829113,0.97548339,2454.9,2454.8,28.85421458]
[1751464829329,0.97548339,2454.9,2454.8,15.42615162]
[1751464829483,0.02,2455.4,2455.1,4.0730943]
[1751464829693,0.9748327,2455.3,2454.8,10.8025]
[1751464829886,0.02,2455.4,2455.2,2.08]
[1751464830081,0.02,2455.4,2455.3,6.723]
[1751464830314,0.99476287,2455.4,2455.3,6.723]
[1751464830534,0.99476287,2455.4,2455.3,10.79582205]
[1751464830697,0.99476287,2455.4,2455.3,23.30690096]
[1751464831016,0.99476287,2455.4,2455.3,23.85690096]
[1751464832921,0.99476287,2455.4,2455.3,25.93390096]
[1751464833291,0.99476287,2455.4,2455.3,21.31107891]
[1751464833594,0.99476287,2455.4,2455.3,14.88902205]
[1751464833816,0.02,2455.4,2455.3,23.68902205]
[1751464834790,0.02,2455.4,2455.3,24.23902205]
[1751464835429,0.02,2455.4,2455.3,15.43902205]
[1751464835588,0.02,2455.4,2455.3,24.23802205]
[1751464835795,0.02,2455.4,2455.3,27.06912199]
[1751464835989,0.02,2455.4,2455.3,17.72012199]
[1751464836304,0.02,2455.4,2455.3,26.51812199]
[1751464837858,0.02,2455.4,2455.3,27.06812199]
[1751464838712,0.02,2455.4,2455.3,27.27132199]
[1751464839474,0.02,2455.4,2455.3,18.47332199]
[1751464839626,0.02,2455.4,2455.3,27.26932199]
[1751464839831,0.02,2455.4,2455.3,18.47332199]
[1751464840073,0.02,2455.4,2455.3,27.26832199]
[1751464842054,0.02,2455.4,2455.3,18.47332199]
[1751464842457,0.02,2455.4,2455.3,27.26832199]
[1751464842657,0.02,2455.4,2455.3,18.47332199]
[1751464842852,0.02,2455.4,2455.3,27.26732199]
[1751464843566,0.02,2455.4,2455.3,18.47332199]
[1751464843765,0.02,2455.4,2455.3,20.55132199]
[1751464843934,0.02,2455.4,2455.3,27.26732199]
[1751464847873,0.02,2455.4,2455.3,42.66515299]
[1751464848083,0.02,2455.7,2455.6,5.40542448]
[1751464848300,0.02,2455.7,2455.6,26.87042448]
[1751464848445,0.02,2455.7,2455.6,27.07362448]
[1751464850573,0.02,2455.7,2455.6,29.15162448]
[1751464850943,0.02,2455.7,2455.6,20.35862448]
[1751464851162,0.02,2455.7,2455.6,21.6675421]
[1751464851585,0.02,2455.7,2455.6,29.6774421]
[1751464852162,0.02,2455.7,2455.6,24.9274421]
[1751464852760,0.02,2455.7,2455.6,11.51211762]
[1751464853098,0.7867,2455.7,2455.6,0.2032]
[1751464853265,0.7867,2455.7,2455.6,8.9932]
[1751464853797,0.7867,2455.7,2455.6,0.2032]
[1751464853998,0.7867,2455.7,2455.6,8.9932]
[1751464858462,0.02,2455.7,2455.6,13.06552448]
[1751464858763,0.02,2455.7,2455.6,14.77931753]
[1751464858968,0.02,2455.7,2455.6,25.53101753]
[1751464860385,0.02,2455.7,2455.6,26.08101753]
[1751464861618,0.02,2455.7,2455.6,26.08001753]
[1751464862909,0.02,2455.7,2455.6,17.29101753]
[1751464863085,0.02,2455.7,2455.6,18.81701753]
[1751464863287,0.02,2455.7,2455.6,25.53001753]
[1751464864021,0.02,2455.7,2455.6,0.2032]
[1751464864325,0.99418149,2455.7,2455.6,8.9922]
[1751464865086,0.02,2455.7,2455.6,8.9922]
[1751464866005,0.99516211,2455.7,2455.6,0.2032]
[1751464866316,0.99516211,2455.7,2455.6,8.9922]
[1751464866822,1.80776211,2455.7,2455.6,0.2032]
[1751464867011,1.80776211,2455.7,2455.6,2.2792]
[1751464867210,1.80776211,2455.7,2455.6,8.9922]
[1751464867422,1.80776211,2455.7,2455.6,2.2792]
[1751464867623,1.80776211,2455.7,2455.6,0.2032]
[1751464867822,0.7732,2455.6,2455.4,2.076]
[1751464868123,0.7732,2455.6,2455.5,6.712]
[1751464868326,1.75015012,2455.6,2455.5,6.712]
[1751464868629,0.818,2455.5,2455.3,0.2132]
[1751464868829,0.818,2455.5,2455.4,8.788]
[1751464869126,1.79432953,2455.5,2455.3,0.2132]
[1751464869333,0.7988,2455.5,2455.3,0.2132]
[1751464869626,1.77508606,2455.4,2455.3,2.2892]
[1751464869827,1.77508606,2455.4,2455.3,0.2132]
[1751464870028,1.77508606,2455.4,2455.3,2.2892]
[1751464870255,1.77508606,2455.4,2455.3,8.799]
[1751464870404,1.77508606,2455.4,2455.3,0.01]
[1751464870729,1.77508606,2455.4,2455.3,6.723]
[1751464871023,1.77508606,2455.4,2455.3,0.01]
[1751464871024,3.31572096,2455.4,2455.3,0.01]
[1751464871420,1.77508606,2455.4,2455.3,0.01]
[1751464873041,42.32508606,2455.4,2455.3,0.01]
[1751464873242,0.7627,2455.2,2454.8,2.076]
[1751464873413,0.7627,2455.0,2454.8,2.076]
[1751464873734,1.74498606,2454.9,2454.8,2.076]
[1751464874339,0.7687,2454.9,2454.8,2.076]
[1751464874727,1.74498606,2454.9,2454.8,2.076]
[1751464874926,0.7687,2454.9,2454.8,2.076]